fUST/lending_fUST_20250719
["ID","MTS","AMOUNT","RATE_DAILY","PERIOD"]
[373201231,1752904240698,-460.0,0.00016438,2]
[373201232,1752904240707,-460.0,0.00016438,2]
[373201233,1752904240718,-3497.68,0.00016438,2]
[373201235,1752904240727,-460.0,0.00016438,2]
[373201236,1752904240736,-460.0,0.00016438,2]
[373201238,1752904240746,-460.0,0.00016438,2]
[373201239,1752904240756,-460.0,0.00016438,2]
[373201240,1752904240765,-460.0,0.00016438,2]
[373201241,1752904240775,-460.0,0.00016438,2]
[373201242,1752904240785,-463.4376068,0.00016438,2]
[373201243,1752904240794,-460.0,0.00016438,2]
[373201244,1752904240804,-460.0,0.00016438,2]
[373201245,1752904240816,-460.0,0.00016438,2]
[373201246,1752904240827,-308.71832558,0.00016438,2]
[373201247,1752904240836,-460.0,0.00016438,2]
[373201248,1752904240845,-460.0,0.00016438,2]
[373201249,1752904240855,-460.0,0.00016438,2]
[373201250,1752904240865,-985.27,0.00016438,2]
[373201251,1752904240874,-460.0,0.00016438,2]
[373201252,1752904240884,-460.0,0.00016438,2]
[373201254,1752904240893,-460.0,0.00016438,2]
[373201255,1752904240903,-821.08,0.00016438,2]
[373201256,1752904240912,-460.0,0.00016438,2]
[373201257,1752904240922,-460.0,0.00016438,2]
[373201258,1752904240932,-460.0,0.00016438,2]
[373201259,1752904240942,-460.0,0.00016438,2]
[373201260,1752904240951,-460.0,0.00016438,2]
[373201261,1752904240961,-461.63832666,0.00016438,2]
[373201262,1752904240972,-460.0,0.00016438,2]
[373201263,1752904240982,-460.0,0.00016438,2]
[373201264,1752904240991,-460.0,0.00016438,2]
[373201265,1752904241002,-460.0,0.00016438,2]
[373201266,1752904241012,-460.0,0.00016438,2]
[373201267,1752904241024,-460.0,0.00016438,2]
[373201268,1752904241034,-460.0,0.00016438,2]
[373201269,1752904241045,-1588.52,0.00016438,2]
[373201270,1752904241059,-2548.48,0.00016438,2]
[373201271,1752904241068,-506.05,0.00016438,2]
[373201272,1752904241079,-460.0,0.00016438,2]
[373201273,1752904241091,-460.0,0.00016438,2]
[373201274,1752904241101,-460.0,0.00016438,2]
[373201275,1752904241111,-460.0,0.00016438,2]
[373201276,1752904241121,-460.0,0.00016438,2]
[373201277,1752904241131,-471.13780723,0.00016438,2]
[373201278,1752904241142,-460.0,0.00016438,2]
[373201279,1752904241151,-460.0,0.00016438,2]
[373201280,1752904241160,-460.0,0.00016438,2]
[373201281,1752904241171,-460.0,0.00016438,2]
[373201282,1752904241180,-460.0,0.00016438,2]
[373201283,1752904241189,-500.0,0.00016438,2]
[373201284,1752904241200,-500.0,0.00016438,2]
[373201285,1752904241211,-460.0,0.00016438,2]
[373201286,1752904241222,-460.0,0.00016438,2]
[373201287,1752904241231,-460.0,0.00016438,2]
[373201288,1752904241241,-462.5263546,0.00016438,2]
[373201289,1752904241252,-461.40942117,0.00016438,2]
[373201290,1752904241262,-460.0,0.00016438,2]
[373201291,1752904241272,-503.00993077,0.00016438,2]
[373201292,1752904241282,-460.0,0.00016438,2]
[373201293,1752904241291,-461.45278346,0.00016438,2]
[373201294,1752904241301,-460.0,0.00016438,2]
[373201295,1752904241311,-460.0,0.00016438,2]
[373201296,1752904241320,-460.0,0.00016438,2]
[373201297,1752904241330,-460.0,0.00016438,2]
[373201298,1752904241340,-462.21705944,0.00016438,2]
[373201299,1752904241349,-460.0,0.00016438,2]
[373201300,1752904241359,-460.0,0.00016438,2]
[373201301,1752904241369,-460.0,0.00016438,2]
[373201302,1752904241378,-460.0,0.00016438,2]
[373201303,1752904241388,-461.92884126,0.00016438,2]
[373201304,1752904241397,-461.69924161,0.00016438,2]
[373201305,1752904241407,-862.37,0.00016438,2]
[373201306,1752904241416,-511.74395873,0.00016438,2]
[373201307,1752904241426,-460.0,0.00016438,2]
[373201308,1752904241437,-460.0,0.00016438,2]
[373201309,1752904241447,-460.0,0.00016438,2]
[373201310,1752904241458,-460.0,0.00016438,2]
[373201311,1752904241469,-460.0,0.00016438,2]
[373201312,1752904241479,-460.0,0.00016438,2]
[373201313,1752904241489,-460.0,0.00016438,2]
[373201314,1752904241500,-460.0,0.00016438,2]
[373201315,1752904241511,-460.0,0.00016438,2]
[373201316,1752904241522,-460.0,0.00016438,2]
[373201317,1752904241532,-460.0,0.00016438,2]
[373201318,1752904241542,-1726.01,0.00016438,2]
[373201319,1752904241551,-460.0,0.00016438,2]
[373201320,1752904241561,-2428.98,0.00016438,2]
[373201321,1752904241570,-460.0,0.00016438,2]
[373201322,1752904241580,-460.0,0.00016438,2]
[373201323,1752904241589,-460.0,0.00016438,2]
[373201324,1752904241600,-460.0,0.00016438,2]
[373201325,1752904241610,-460.0,0.00016438,2]
[373201326,1752904241620,-460.0,0.00016438,2]
[373201327,1752904241629,-460.0,0.00016438,2]
[373201328,1752904241639,-500.0,0.00016438,2]
[373201329,1752904241648,-500.0,0.00016473,2]
[373201330,1752904241658,-500.0,0.00016473,2]
[373201331,1752904241667,-500.0,0.00016473,2]
[373201332,1752904241677,-500.78490054,0.00016473,2]
[373201333,1752904241687,-500.0,0.00016473,2]
[373201334,1752904241696,-212.74842167,0.00016473,2]
[373201335,1752904241705,-500.0,0.00016473,2]
[373201336,1752904241714,-500.0,0.00016473,2]
[373201337,1752904241725,-208.8,0.00016702,3]
[373201338,1752904241734,-626.4,0.00016702,3]
[373201339,1752904241744,-500.0,0.00016711,2]
[373201340,1752904241753,-500.0,0.00016711,2]
[373201341,1752904241763,-500.0,0.00016711,2]
[373201342,1752904241772,-500.0,0.00016711,2]
[373201343,1752904241782,-460.0,0.00016712,2]
[373201344,1752904241792,-460.0,0.00016712,2]
[373201345,1752904241801,-465.5643593,0.00016712,2]
[373201346,1752904241811,-460.0,0.00016712,2]
[373201347,1752904241821,-225.49467486,0.00016712,2]
[373201348,1752904241831,-500.0,0.00016712,2]
[373201349,1752904241840,-669.96,0.00016712,2]
[373201350,1752904241850,-460.0,0.00016712,2]
[373201351,1752904241860,-460.0,0.00016712,2]
[373201352,1752904241870,-460.0,0.00016712,2]
[373201353,1752904241879,-460.0,0.00016712,2]
[373201354,1752904241889,-460.0,0.00016712,2]
[373201355,1752904241899,-460.0,0.00016712,2]
[373201356,1752904241908,-470.56178733,0.00016712,2]
[373201357,1752904241918,-509.17789306,0.00016712,2]
[373201358,1752904241927,-460.0,0.00016712,2]
[373201359,1752904241936,-460.0,0.00016712,2]
[373201360,1752904241946,-460.0,0.00016712,2]
[373201361,1752904241955,-460.0,0.00016712,2]
[373201362,1752904241965,-460.0,0.00016712,2]
[373201363,1752904241974,-460.0,0.00016712,2]
[373201364,1752904241984,-460.0,0.00016712,2]
[373201365,1752904241994,-460.0,0.00016712,2]
[373201366,1752904242003,-460.0,0.00016712,2]
[373201367,1752904242012,-429.81872431,0.00016712,2]
[373201368,1752904242022,-152.74100839,0.00016712,2]
[373201369,1752904242031,-460.0,0.00016712,2]
[373201370,1752904242043,-252.17,0.00016712,2]
[373201371,1752904242058,-460.0,0.00016712,2]
[373201372,1752904242068,-460.0,0.00016712,2]
[373201373,1752904242077,-460.0,0.00016712,2]
[373201374,1752904242087,-460.0,0.00016712,2]
[373201375,1752904242098,-469.84,0.00016712,2]
[373201376,1752904242108,-460.0,0.00016712,2]
[373201377,1752904242117,-460.0,0.00016712,2]
[373201378,1752904242126,-460.0,0.00016712,2]
[373201379,1752904242137,-460.0,0.00016712,2]
[373201380,1752904242147,-460.0,0.00016712,2]
[373201381,1752904242157,-460.0,0.00016712,2]
[373201382,1752904242165,-460.0,0.00016712,2]
[373201383,1752904242174,-1054.0,0.00016712,2]
[373201384,1752904242182,-460.0,0.00016712,2]
[373201385,1752904242191,-460.0,0.00016712,2]
[373201386,1752904242199,-460.0,0.00016712,2]
[373201387,1752904242207,-460.0,0.00016712,2]
[373201388,1752904242217,-460.0,0.00016712,2]
[373201389,1752904242227,-460.0,0.00016712,2]
[373201390,1752904242236,-463.63892425,0.00016712,2]
[373201391,1752904242245,-460.0,0.00016712,2]
[373201392,1752904242255,-460.0,0.00016712,2]
[373201393,1752904242264,-460.0,0.00016712,2]
[373201394,1752904242274,-460.0,0.00016712,2]
[373201395,1752904242283,-460.0,0.00016712,2]
[373201396,1752904242292,-460.0,0.00016712,2]
[373201397,1752904242301,-460.0,0.00016712,2]
[373201398,1752904242311,-460.0,0.00016712,2]
[373201399,1752904242320,-460.0,0.00016712,2]
[373201400,1752904242330,-252.65842997,0.00016712,2]
[373201401,1752904242339,-460.0,0.00016712,2]
[373201402,1752904242348,-1082.33,0.00016712,2]
[373201403,1752904242358,-460.0,0.00016712,2]
[373201404,1752904242367,-460.0,0.00016712,2]
[373201405,1752904242376,-460.0,0.00016712,2]
[373201406,1752904242386,-460.0,0.00016712,2]
[373201407,1752904242396,-460.0,0.00016712,2]
[373201408,1752904242405,-460.0,0.00016712,2]
[373201409,1752904242415,-460.0,0.00016712,2]
[373201410,1752904242424,-460.0,0.00016712,2]
[373201411,1752904242433,-460.0,0.00016712,2]
[373201412,1752904242443,-460.0,0.00016712,2]
[373201413,1752904242452,-460.0,0.00016712,2]
[373201414,1752904242462,-460.0,0.00016712,2]
[373201415,1752904242473,-460.0,0.00016712,2]
[373201416,1752904242482,-632.77,0.00016712,2]
[373201417,1752904242492,-460.0,0.00016712,2]
[373201418,1752904242501,-1557.1020652,0.00016712,2]
[373201419,1752904242587,-90.6379348,0.00016712,2]
[373201420,1752904242597,-460.0,0.00016712,2]
[373201421,1752904242606,-460.0,0.00016712,2]
[373201422,1752904242616,-465.63051117,0.00016712,2]
[373201423,1752904242625,-460.0,0.00016712,2]
[373201424,1752904242635,-460.0,0.00016712,2]
[373201425,1752904242644,-460.0,0.00016712,2]
[373201426,1752904242654,-460.0,0.00016712,2]
[373201427,1752904242663,-460.0,0.00016712,2]
[373201428,1752904242672,-460.0,0.00016712,2]
[373201429,1752904242682,-460.0,0.00016712,2]
[373201430,1752904242691,-471.27,0.00016712,2]
[373201431,1752904242701,-460.0,0.00016712,2]
[373201432,1752904242711,-460.0,0.00016712,2]
[373201433,1752904242721,-460.0,0.00016712,2]
[373201434,1752904242731,-460.0,0.00016712,2]
[373201435,1752904242741,-1036.4,0.00016712,2]
[373201436,1752904242751,-460.0,0.00016712,2]
[373201437,1752904242761,-511.91,0.00016712,2]
[373201438,1752904242770,-460.0,0.00016712,2]
[373201439,1752904242779,-471.16920484,0.00016712,2]
[373201440,1752904242789,-460.0,0.00016712,2]
[373201441,1752904242799,-601.4,0.00016712,2]
[373201442,1752904242808,-460.0,0.00016712,2]
[373201443,1752904242818,-460.0,0.00016712,2]
[373201444,1752904242827,-460.0,0.00016712,2]
[373201445,1752904242836,-460.0,0.00016712,2]
[373201446,1752904242846,-460.0,0.00016712,2]
[373201447,1752904242855,-460.0,0.00016712,2]
[373201448,1752904242865,-460.0,0.00016712,2]
[373201449,1752904242874,-1787.24,0.00016712,2]
[373201450,1752904242883,-460.0,0.00016712,2]
[373201451,1752904242893,-867.49,0.00016712,2]
[373201452,1752904242902,-3497.68,0.00016712,2]
[373201453,1752904242912,-460.0,0.00016712,2]
[373201454,1752904242921,-460.0,0.00016712,2]
[373201455,1752904242930,-460.0,0.00016712,2]
[373201456,1752904242939,-461.99241898,0.00016712,2]
[373201457,1752904242949,-460.0,0.00016712,2]
[373201458,1752904242958,-460.0,0.00016712,2]
[373201459,1752904242968,-460.0,0.00016712,2]
[373201460,1752904242978,-460.0,0.00016712,2]
[373201461,1752904242987,-460.0,0.00016712,2]
[373201462,1752904242996,-985.27,0.00016712,2]
[373201463,1752904243006,-460.0,0.00016712,2]
[373201464,1752904243015,-555.70430094,0.00016712,2]
[373201465,1752904243025,-821.08,0.00016712,2]
[373201466,1752904243034,-460.0,0.00016712,2]
[373201467,1752904243043,-460.0,0.00016712,2]
[373201468,1752904243055,-460.0,0.00016712,2]
[373201469,1752904243065,-460.0,0.00016712,2]
[373201470,1752904243075,-460.0,0.00016712,2]
[373201471,1752904243085,-460.0,0.00016712,2]
[373201472,1752904243095,-460.0,0.00016712,2]
[373201473,1752904243105,-460.0,0.00016712,2]
[373201474,1752904243115,-1588.52,0.00016712,2]
[373201475,1752904243124,-2548.48,0.00016712,2]
[373201476,1752904243134,-506.05,0.00016712,2]
[373201477,1752904243144,-460.0,0.00016712,2]
[373201478,1752904243154,-460.0,0.00016712,2]
[373201479,1752904243163,-460.0,0.00016712,2]
[373201480,1752904243174,-460.0,0.00016712,2]
[373201481,1752904243183,-460.0,0.00016712,2]
[373201482,1752904243193,-460.0,0.00016712,2]
[373201483,1752904243202,-460.0,0.00016712,2]
[373201484,1752904243211,-460.0,0.00016712,2]
[373201485,1752904243222,-460.0,0.00016712,2]
[373201486,1752904243231,-460.0,0.00016712,2]
[373201487,1752904243241,-460.0,0.00016712,2]
[373201488,1752904243250,-460.0,0.00016712,2]
[373201489,1752904243259,-460.0,0.00016712,2]
[373201490,1752904243269,-460.0,0.00016712,2]
[373201491,1752904243278,-460.0,0.00016712,2]
[373201492,1752904243288,-460.0,0.00016712,2]
[373201493,1752904243297,-862.37,0.00016712,2]
[373201494,1752904243306,-460.0,0.00016712,2]
[373201495,1752904243315,-460.0,0.00016712,2]
[373201496,1752904243325,-460.0,0.00016712,2]
[373201497,1752904243334,-460.0,0.00016712,2]
[373201498,1752904243343,-460.0,0.00016712,2]
[373201499,1752904243352,-418.18023803,0.00016712,2]
[373201500,1752904243361,-1726.01,0.00016712,2]
[373201501,1752904243370,-460.0,0.00016712,2]
[373201502,1752904243379,-2428.98,0.00016712,2]
[373201503,1752904243388,-460.0,0.00016712,2]
[373201504,1752904243397,-460.0,0.00016712,2]
[373201505,1752904243406,-460.0,0.00016712,2]
[373201506,1752904243415,-460.0,0.00016712,2]
[373201507,1752904243424,-462.18883429,0.00016712,2]
[373201508,1752904243434,-470.54402118,0.00016712,2]
[373201509,1752904243443,-10397.95744084,0.000168,2]
[373201510,1752904243452,-500.0,0.00016885,2]
[373201511,1752904243461,-80000.0,0.00016886,2]
[373201512,1752904243472,-4359.75584857,0.000169,2]
[373201513,1752904243482,-281.75465443,0.00016986,2]
[373201514,1752904243491,-669.96,0.00016986,2]
[373201515,1752904243502,-460.0,0.00016986,2]
[373201516,1752904243511,-535.41929037,0.00016986,2]
[373201517,1752904243525,-460.0,0.00016986,2]
[373201518,1752904243537,-476.63075359,0.00016986,2]
[373201519,1752904243546,-299.00333731,0.00016986,2]
[373201520,1752904243555,-463.43577304,0.00016986,2]
[373201521,1752904243564,-460.0,0.00016986,2]
[373201522,1752904243574,-473.78031822,0.00016986,2]
[373201523,1752904243584,-460.0,0.00016986,2]
[373201524,1752904243593,-460.0,0.00016986,2]
[373201525,1752904243602,-460.0,0.00016986,2]
[373201526,1752904243611,-460.0,0.00016986,2]
[373201527,1752904243621,-460.0,0.00016986,2]
[373201528,1752904243630,-460.0,0.00016986,2]
[373201529,1752904243639,-222.69535022,0.00016986,2]
[373201530,1752904243649,-460.0,0.00016986,2]
[373201531,1752904243659,-1054.0,0.00016986,2]
[373201532,1752904243668,-460.0,0.00016986,2]
[373201533,1752904243677,-460.0,0.00016986,2]
[373201534,1752904243686,-460.0,0.00016986,2]
[373201535,1752904243695,-460.0,0.00016986,2]
[373201536,1752904243705,-460.0,0.00016986,2]
[373201537,1752904243714,-460.0,0.00016986,2]
[373201538,1752904243725,-460.0,0.00016986,2]
[373201539,1752904243735,-460.0,0.00016986,2]
[373201540,1752904243744,-460.0,0.00016986,2]
[373201541,1752904243872,-460.0,0.00016986,2]
[373201542,1752904243883,-460.0,0.00016986,2]
[373201543,1752904243894,-460.0,0.00016986,2]
[373201544,1752904243903,-460.0,0.00016986,2]
[373201545,1752904243914,-460.0,0.00016986,2]
[373201546,1752904243924,-460.0,0.00016986,2]
[373201547,1752904243933,-1082.33,0.00016986,2]
[373201548,1752904243943,-460.0,0.00016986,2]
[373201549,1752904243952,-460.0,0.00016986,2]
[373201550,1752904243962,-460.0,0.00016986,2]
[373201551,1752904243972,-178.24103864,0.00016986,2]
[373201552,1752904243982,-460.0,0.00016986,2]
[373201553,1752904243992,-464.82146395,0.00016986,2]
[373201554,1752904244002,-460.0,0.00016986,2]
[373201555,1752904244012,-460.0,0.00016986,2]
[373201556,1752904244022,-632.77,0.00016986,2]
[373201557,1752904244031,-460.0,0.00016986,2]
[373201558,1752904244042,-1647.74,0.00016986,2]
[373201559,1752904244054,-460.0,0.00016986,2]
[373201560,1752904244064,-320.58843696,0.00016986,2]
[373201561,1752904244075,-460.0,0.00016986,2]
[373201562,1752904244085,-460.0,0.00016986,2]
[373201563,1752904244096,-460.0,0.00016986,2]
[373201564,1752904244106,-460.0,0.00016986,2]
[373201565,1752904244127,-460.0,0.00016986,2]
[373201566,1752904244145,-471.27,0.00016986,2]
[373201567,1752904244154,-460.0,0.00016986,2]
[373201568,1752904244164,-460.0,0.00016986,2]
[373201569,1752904244173,-460.0,0.00016986,2]
[373201570,1752904244182,-460.0,0.00016986,2]
[373201571,1752904244192,-1036.4,0.00016986,2]
[373201572,1752904244201,-460.0,0.00016986,2]
[373201573,1752904244211,-511.91,0.00016986,2]
[373201574,1752904244221,-460.0,0.00016986,2]
[373201575,1752904244230,-460.0,0.00016986,2]
[373201576,1752904244240,-601.4,0.00016986,2]
[373201577,1752904244249,-460.0,0.00016986,2]
[373201578,1752904244258,-1787.24,0.00016986,2]
[373201580,1752904244268,-867.49,0.00016986,2]
[373201582,1752904244277,-3497.68,0.00016986,2]
[373201584,1752904244287,-460.0,0.00016986,2]
[373201585,1752904244296,-460.0,0.00016986,2]
[373201587,1752904244306,-460.0,0.00016986,2]
[373201590,1752904244316,-499.35028916,0.00016986,2]
[373201592,1752904244325,-460.0,0.00016986,2]
[373201595,1752904244335,-985.27,0.00016986,2]
[373201598,1752904244344,-821.08,0.00016986,2]
[373201601,1752904244354,-460.0,0.00016986,2]
[373201604,1752904244364,-460.0,0.00016986,2]
[373201607,1752904244373,-460.0,0.00016986,2]
[373201609,1752904244382,-460.0,0.00016986,2]
[373201611,1752904244392,-460.0,0.00016986,2]
[373201613,1752904244401,-460.0,0.00016986,2]
[373201615,1752904244410,-460.0,0.00016986,2]
[373201617,1752904244421,-460.0,0.00016986,2]
[373201619,1752904244430,-1588.52,0.00016986,2]
[373201621,1752904244440,-506.05,0.00016986,2]
[373201623,1752904244450,-2548.48,0.00016986,2]
[373201625,1752904244459,-460.0,0.00016986,2]
[373201627,1752904244469,-460.0,0.00016986,2]
[373201629,1752904244478,-460.0,0.00016986,2]
[373201630,1752904244488,-460.0,0.00016986,2]
[373201632,1752904244498,-460.0,0.00016986,2]
[373201634,1752904244509,-460.0,0.00016986,2]
[373201636,1752904244518,-460.0,0.00016986,2]
[373201638,1752904244528,-460.0,0.00016986,2]
[373201640,1752904244537,-460.0,0.00016986,2]
[373201643,1752904244549,-460.0,0.00016986,2]
[373201646,1752904244558,-862.37,0.00016986,2]
[373201648,1752904244568,-460.0,0.00016986,2]
[373201651,1752904244577,-460.0,0.00016986,2]
[373201653,1752904244588,-460.0,0.00016986,2]
[373201655,1752904244610,-460.0,0.00016986,2]
[373201657,1752904244620,-460.0,0.00016986,2]
[373201659,1752904244630,-1726.01,0.00016986,2]
[373201661,1752904244640,-2428.98,0.00016986,2]
[373201662,1752904244650,-460.0,0.00016986,2]
[373201663,1752904244659,-460.0,0.00016986,2]
[373201664,1752904244669,-460.0,0.00016986,2]
[373201665,1752904244679,-153.0,0.00017,2]
[373201667,1752904244688,-429.3901486,0.00017,2]
[373201669,1752904244698,-273.42693762,0.00017021,2]
[373201671,1752904244708,-500.44944029,0.00017021,2]
[373201673,1752904244718,-501.31515792,0.00017021,2]
[373201675,1752904244729,-1000.0,0.00017021,2]
[373201677,1752904244738,-501.17883196,0.0001713,2]
[373201678,1752904244748,-4359.75584848,0.00017176,2]
[373201679,1752904244758,-669.96,0.0001726,2]
[373201680,1752904244767,-460.0,0.0001726,2]
[373201681,1752904244777,-460.0,0.0001726,2]
[373201682,1752904244787,-460.0,0.0001726,2]
[373201683,1752904244797,-460.0,0.0001726,2]
[373201684,1752904244806,-460.0,0.0001726,2]
[373201685,1752904244816,-460.0,0.0001726,2]
[373201686,1752904244826,-460.0,0.0001726,2]
[373201687,1752904244835,-1054.0,0.0001726,2]
[373201688,1752904244845,-460.0,0.0001726,2]
[373201689,1752904244855,-460.0,0.0001726,2]
[373201690,1752904244864,-460.0,0.0001726,2]
[373201691,1752904244874,-460.0,0.0001726,2]
[373201692,1752904244884,-460.0,0.0001726,2]
[373201693,1752904244894,-460.0,0.0001726,2]
[373201694,1752904244903,-460.0,0.0001726,2]
[373201695,1752904244913,-460.0,0.0001726,2]
[373201696,1752904244922,-508.05684862,0.0001726,2]
[373201697,1752904244932,-1082.33,0.0001726,2]
[373201698,1752904244942,-460.0,0.0001726,2]
[373201699,1752904244951,-431.4586869,0.0001726,2]
[373201700,1752904244961,-460.0,0.0001726,2]
[373201701,1752904244971,-632.77,0.0001726,2]
[373201702,1752904244981,-1647.74,0.0001726,2]
[373201703,1752904244991,-460.0,0.0001726,2]
[373201704,1752904245004,-460.0,0.0001726,2]
[373201705,1752904245014,-460.0,0.0001726,2]
[373201706,1752904245024,-460.0,0.0001726,2]
[373201707,1752904245034,-471.27,0.0001726,2]
[373201708,1752904245043,-460.0,0.0001726,2]
[373201709,1752904245056,-460.0,0.0001726,2]
[373201710,1752904245065,-1036.4,0.0001726,2]
[373201711,1752904245074,-460.0,0.0001726,2]
[373201712,1752904245084,-511.91,0.0001726,2]
[373201713,1752904245095,-460.0,0.0001726,2]
[373201714,1752904245104,-601.4,0.0001726,2]
[373201715,1752904245114,-460.0,0.0001726,2]
[373201716,1752904245123,-1787.24,0.0001726,2]
[373201717,1752904245138,-867.49,0.0001726,2]
[373201718,1752904245147,-3497.68,0.0001726,2]
[373201719,1752904245157,-460.0,0.0001726,2]
[373201720,1752904245166,-460.0,0.0001726,2]
[373201721,1752904245176,-460.0,0.0001726,2]
[373201722,1752904245186,-460.0,0.0001726,2]
[373201723,1752904245196,-985.27,0.0001726,2]
[373201724,1752904245206,-821.08,0.0001726,2]
[373201725,1752904245216,-460.0,0.0001726,2]
[373201726,1752904245228,-460.0,0.0001726,2]
[373201727,1752904245238,-460.0,0.0001726,2]
[373201728,1752904245247,-460.0,0.0001726,2]
[373201729,1752904245257,-460.0,0.0001726,2]
[373201730,1752904245266,-460.0,0.0001726,2]
[373201731,1752904245277,-1588.52,0.0001726,2]
[373201732,1752904245286,-506.05,0.0001726,2]
[373201733,1752904245296,-2548.48,0.0001726,2]
[373201734,1752904245307,-460.0,0.0001726,2]
[373201735,1752904245317,-460.0,0.0001726,2]
[373201736,1752904245327,-460.0,0.0001726,2]
[373201737,1752904245337,-460.0,0.0001726,2]
[373201738,1752904245346,-460.0,0.0001726,2]
[373201739,1752904245355,-460.0,0.0001726,2]
[373201740,1752904245372,-460.0,0.0001726,2]
[373201741,1752904245390,-469.98334508,0.0001726,2]
[373201742,1752904245402,-460.0,0.0001726,2]
[373201743,1752904245412,-862.37,0.0001726,2]
[373201744,1752904245422,-460.0,0.0001726,2]
[373201745,1752904245431,-553.85829011,0.0001726,2]
[373201746,1752904245440,-460.0,0.0001726,2]
[373201747,1752904245450,-1726.01,0.0001726,2]
[373201748,1752904245459,-2428.98,0.0001726,2]
[373201749,1752904245468,-460.0,0.0001726,2]
[373201750,1752904245478,-460.0,0.0001726,2]
[373201751,1752904245489,-460.0,0.0001726,2]
[373201752,1752904245499,-151.0,0.00017321,2]
[373201753,1752904245508,-4359.75584848,0.00017452,2]
[373201754,1752904245517,-700.0,0.0001752,2]
[373201755,1752904245536,-669.96,0.00017534,2]
[373201756,1752904245555,-460.0,0.00017534,2]
[373201757,1752904245564,-460.0,0.00017534,2]
[373201758,1752904245575,-460.0,0.00017534,2]
[373201759,1752904245584,-460.0,0.00017534,2]
[373201760,1752904245594,-460.0,0.00017534,2]
[373201761,1752904245603,-460.0,0.00017534,2]
[373201762,1752904245613,-1054.0,0.00017534,2]
[373201763,1752904245623,-257.76349841,0.00017534,2]
[373201764,1752904245632,-460.0,0.00017534,2]
[373201765,1752904245642,-282.95300636,0.00017534,2]
[373201766,1752904245652,-460.0,0.00017534,2]
[373201767,1752904245662,-460.0,0.00017534,2]
[373201768,1752904245672,-598.51548739,0.00017534,2]
[373201769,1752904245682,-460.0,0.00017534,2]
[373201770,1752904245691,-460.0,0.00017534,2]
[373201771,1752904245701,-1082.33,0.00017534,2]
[373201772,1752904245711,-460.0,0.00017534,2]
[373201773,1752904245723,-632.77,0.00017534,2]
[373201774,1752904245733,-1647.74,0.00017534,2]
[373201775,1752904245743,-288.01346243,0.00017534,2]
[373201776,1752904245752,-460.0,0.00017534,2]
[373201777,1752904245762,-460.0,0.00017534,2]
[373201778,1752904245772,-460.0,0.00017534,2]
[373201779,1752904245781,-471.27,0.00017534,2]
[373201780,1752904245791,-460.0,0.00017534,2]
[373201781,1752904245800,-460.0,0.00017534,2]
[373201782,1752904245810,-1036.4,0.00017534,2]
[373201783,1752904245819,-460.0,0.00017534,2]
[373201784,1752904245829,-511.91,0.00017534,2]